{"text_format":"3","workbook":"xlsx","n_sheets":1,"sheets":["Arkusz1"],"not_rendered":{"defined_names":2},"read":"whole","date_system":"1900"}

{"sheet":"Arkusz1","index":0,"n_rows":115,"n_cols":6,"rows_kept":115,"merged":[[0,0,0,5],[1,0,1,5],[2,0,2,5],[3,0,7,0],[3,1,4,5],[6,1,7,1],[6,2,7,2],[6,3,7,3],[6,4,7,4],[6,5,7,5],[18,0,18,5],[19,0,19,5],[20,0,24,0],[20,1,21,5],[23,1,24,1],[23,2,24,2],[23,3,24,3],[23,4,24,4],[23,5,24,5],[35,0,35,5],[36,0,36,5],[37,0,41,0],[37,1,38,5],[40,1,41,1],[40,2,41,2],[40,3,41,3],[40,4,41,4],[40,5,41,5],[52,0,52,5],[53,0,53,5],[54,0,58,0],[54,1,55,5],[57,1,58,1],[57,2,58,2],[57,3,58,3],[57,4,58,4],[57,5,58,5],[69,0,69,5],[70,0,70,5],[71,0,75,0],[71,1,72,5],[74,1,75,1],[74,2,75,2],[74,3,75,3],[74,4,75,4],[74,5,75,5],[86,0,86,5],[87,0,87,5],[88,0,92,0],[88,1,89,5],[91,1,92,1],[91,2,92,2],[91,3,92,3],[91,4,92,4],[91,5,92,5],[99,0,99,5],[101,0,101,1],[101,4,101,5],[103,0,103,3],[105,0,105,5],[106,0,106,5]]}
["CZĘŚĆ II ZAMÓWIENIA- SAMOCHODY CIĘŻAROWE             FORMULARZ CENOWY - ZAŁĄCZNIK NR 1B"]
["Tabela 1"]
["1. Ceny usług wraz z niezbędnymi częściami zamiennymi dla nw. usług  w zakresie napraw  pojazdów Zamawiającego marki DAF "]
["Czynność","DAF XB260 FA  poj. 6690,  ilość – 1 sztuka, prod. 2025, masa cał. 16 ton\nXLRAEL2700L549179 kW 189"]
[]
[null,1,2,3,4,5]
[null,"Szacunkowa ilość usług","Cena jednostkowa netto (zł)","Cena jednostkowa brutto  (zł)","Wartość netto  (zł)\n ( kol. 1 x kol. 2  )","Wartość brutto (zł)      (kol. 1 x kol. 3)"]
[]
["Przegląd okresowy\n (wymiana oleju + wymiana wszystkich filtrów)",1,null,null,{"$f":"SUM(B9*C9)","v":0},{"$f":"SUM(B9*D9)","v":0}]
["Serwis klimatyzacji (ogrzybianie, wymiana filtra kabinowego, wymiana filtra-osuszacza) bez czynnika",1,null,null,{"$f":"SUM(B10*C10)","v":0},{"$f":"SUM(B10*D10)","v":0}]
["Wymiana klocków hamulcowych przód prawa + lewa strona",1,null,null,{"$f":"SUM(B11*C11)","v":0},{"$f":"SUM(B11*D11)","v":0}]
["Wymiana klocków hamulcowych tył prawa + lewa strona",1,null,null,0,0]
["Wymiana tarcz hamulcowych tył prawa + lewa strona",1,null,null,{"$f":"SUM(B13*C13)","v":0},{"$f":"SUM(B13*D13)","v":0}]
["Wymiana tarcz hamulcowych przód prawa + lewa strona",1,null,null,0,0]
["Ustawienie zbieżności kół",1,null,null,0,0]
["Diagnostyka komputerowa",2,null,null,0,0]
["Okresowe badania techniczne na SKP ",1,null,null,0,0]
[{"$nulls":3},"RAZEM",{"$f":"SUM(E9:E17)","v":0},{"$f":"SUM(F9:F17)","v":0}]
["Tabela 2"]
["2. Ceny usług wraz z niezbędnymi częściami zamiennymi dla nw. usług  w zakresie napraw  pojazdów Zamawiającego marki DAF "]
["Czynność","DAF XB260 FA  poj. 6690,  ilość – 1 sztuka, prod. 2025, masa cał. 19 ton\nXLRAEL3700L549077 kW 189"]
[]
[null,1,2,3,4,5]
[null,"Szacunkowa ilość usług","Cena jednostkowa netto (zł)","Cena jednostkowa brutto  (zł)","Wartość netto  (zł)\n ( kol. 1 x kol. 2  )","Wartość brutto (zł)      (kol. 1 x kol. 3)"]
[]
["Przegląd okresowy\n (wymiana oleju + wymiana wszystkich filtrów)",1,null,null,{"$f":"SUM(B26*C26)","v":0},{"$f":"SUM(B26*D26)","v":0}]
["Serwis klimatyzacji (ogrzybianie, wymiana filtra kabinowego, wymiana filtra-osuszacza) bez czynnika",1,null,null,{"$f":"SUM(B27*C27)","v":0},{"$f":"SUM(B27*D27)","v":0}]
["Wymiana klocków hamulcowych przód prawa + lewa strona",1,null,null,0,0]
["Wymiana klocków hamulcowych tył prawa + lewa strona",1,null,null,0,0]
["Wymiana tarcz hamulcowych tył prawa + lewa strona",1,null,null,0,0]
["Wymiana tarcz hamulcowych przód prawa + lewa strona",1,null,null,0,0]
["Ustawienie zbieżności kół",1,null,null,0,0]
["Diagnostyka komputerowa",1,null,null,0,0]
["Okresowe badania techniczne na SKP ",1,null,null,0,0]
[{"$nulls":3},"RAZEM",{"$f":"SUM(E26:E34)","v":0},{"$f":"SUM(F26:F34)","v":0}]
["Tabela 3"]
["3. Ceny usług wraz z niezbędnymi częściami zamiennymi dla nw. usług  w zakresie napraw  pojazdów Zamawiającego marki RENAULT MIDLUM "]
["Czynność","Renault Midlum 220.16  poj. 4764,  ilość – 1 sztuka, prod. 2008,\nVF644AGL000002258 kW 158"]
[]
[null,1,2,3,4,5]
[null,"Szacunkowa ilość usług","Cena jednostkowa netto (zł)","Cena jednostkowa brutto  (zł)","Wartość netto  (zł)\n ( kol. 1 x kol. 2  )","Wartość brutto (zł)      (kol. 1 x kol. 3)"]
[]
["Przegląd okresowy\n (wymiana oleju + wymiana wszystkich filtrów)",1,null,null,{"$f":"SUM(B43*C43)","v":0},{"$f":"SUM(B43*D43)","v":0}]
["Serwis klimatyzacji (ogrzybianie, wymiana filtra kabinowego, wymiana filtra-osuszacza) bez czynnika",1,null,null,{"$f":"SUM(B44*C44)","v":0},{"$f":"SUM(B44*D44)","v":0}]
["Wymiana klocków hamulcowych przód prawa + lewa strona",1,null,null,0,0]
["Wymiana klocków hamulcowych tył prawa + lewa strona",1,null,null,0,0]
["Wymiana tarcz hamulcowych tył prawa + lewa strona",1,null,null,{"$f":"SUM(B47*C47)","v":0},{"$f":"SUM(B47*D47)","v":0}]
["Wymiana tarcz hamulcowych przód prawa + lewa strona",1,null,null,0,0]
["Ustawienie zbieżności kół",1,null,null,0,0]
["Diagnostyka komputerowa",1,null,null,0,0]
["Okresowe badania techniczne na SKP ",1,null,null,0,0]
[{"$nulls":3},"RAZEM",{"$f":"SUM(E43:E51)","v":0},{"$f":"SUM(F43:F51)","v":0}]
["Tabela 4"]
["4. Ceny usług wraz z niezbędnymi częściami zamiennymi dla nw. usług  w zakresie napraw  pojazdów Zamawiającego marki RENAULT MIDLUM LAWETA"]
["Czynność","Renault Midlum 220.16 poj. 4764,  ilość – 1 sztuka, prod. 2011, \nVF644AGE000008915 kW 161 - laweta"]
[]
[null,1,2,3,4,5]
[null,"Szacunkowa ilość usług","Cena jednostkowa netto (zł)","Cena jednostkowa brutto  (zł)","Wartość netto  (zł)\n ( kol. 1 x kol. 2  )","Wartość brutto (zł)      (kol. 1 x kol. 3)"]
[]
["Przegląd okresowy\n (wymiana oleju + wymiana wszystkich filtrów)",1,null,null,{"$f":"SUM(B60*C60)","v":0},{"$f":"SUM(B60*D60)","v":0}]
["Serwis klimatyzacji (ogrzybianie, wymiana filtra kabinowego, wymiana filtra-osuszacza) bez czynnika",1,null,null,{"$f":"SUM(B61*C61)","v":0},{"$f":"SUM(B61*D61)","v":0}]
["Wymiana klocków hamulcowych przód komplet",1,null,null,0,0]
["Wymiana tarcz hamulcowych przód komplet",1,null,null,0,0]
["Wyniaba szczęk hamulcowych tył komplet",1,null,null,0,0]
["Wymiana bębnów hamulcowych tył komplet",1,null,null,0,0]
["Ustawienie zbieżności kół",1,null,null,{"$f":"SUM(B66*C66)","v":0},{"$f":"SUM(B66*D66)","v":0}]
["Diagnostyka komputerowa",1,null,null,0,0]
["Okresowe badania techniczne na SKP ",1,null,null,0,0]
[{"$nulls":3},"RAZEM",{"$f":"SUM(E60:E68)","v":0},{"$f":"SUM(F60:F68)","v":0}]
["Tabela 5"]
["5. Ceny usług wraz z niezbędnymi częściami zamiennymi dla nw. usług  w zakresie napraw  pojazdów Zamawiającego marki DAF "]
["Czynność","DAF FA LF 55.250  poj. 6692,  ilość – 1 sztuka, prod. 2010, masa cał. 18 ton\nXLRAE55GF0L362208 kW 182"]
[]
[null,1,2,3,4,5]
[null,"Szacunkowa ilość usług","Cena jednostkowa netto (zł)","Cena jednostkowa brutto  (zł)","Wartość netto  (zł)\n ( kol. 1 x kol. 2  )","Wartość brutto (zł)      (kol. 1 x kol. 3)"]
[]
["Przegląd okresowy\n (wymiana oleju + wymiana wszystkich filtrów)",1,null,null,{"$f":"SUM(B77*C77)","v":0},{"$f":"SUM(B77*D77)","v":0}]
["Serwis klimatyzacji (ogrzybianie, wymiana filtra kabinowego, wymiana filtra-osuszacza) bez czynnika",1,null,null,{"$f":"SUM(B78*C78)","v":0},{"$f":"SUM(B78*D78)","v":0}]
["Wymiana klocków hamulcowych przód komplet",1,null,null,0,0]
["Wymiana tarcz hamulcowych przód komplet",1,null,null,0,0]
["Wyniaba szczęk hamulcowych tył komplet",1,null,null,0,0]
["Wymiana bębnów hamulcowych tył komplet",1,null,null,{"$f":"SUM(B82*C82)","v":0},{"$f":"SUM(B82*D82)","v":0}]
["Ustawienie zbieżności kół",1,null,null,0,0]
["Diagnostyka komputerowa",1,null,null,0,0]
["Okresowe badania techniczne na SKP ",1,null,null,0,0]
[{"$nulls":3},"RAZEM",{"$f":"SUM(E77:E85)","v":0},{"$f":"SUM(F77:F85)","v":0}]
["Tabela 6"]
["6. Ceny usług wraz z niezbędnymi częściami zamiennymi dla nw. usług  w zakresie napraw  pojazdów Zamawiającego marki ZETOR"]
["Czynność","Ciagnik rolniczy ZETOR PROXIMA 2008  poj. 4156,  ilość – 1 sztuka, prod. 2009, \n000P4F4J32LR01129 kW 66"]
[]
[null,1,2,3,4,5]
[null,"Szacunkowa ilość usług","Cena jednostkowa netto (zł)","Cena jednostkowa brutto  (zł)","Wartość netto  (zł)\n ( kol. 1 x kol. 2  )","Wartość brutto (zł)      (kol. 1 x kol. 3)"]
[]
["Przegląd okresowy\n (wymiana oleju + wymiana wszystkich filtrów)",1,null,null,{"$f":"SUM(B94*C94)","v":0},{"$f":"SUM(B94*D94)","v":0}]
["Diagnostyka komputerowa",1,null,null,{"$f":"SUM(B95*C95)","v":0},{"$f":"SUM(B95*D95)","v":0}]
["Wymiana końcówek drążków kierowniczych - 2 sztuki",1,null,null,0,0]
["Okresowe badania techniczne na SKP ",1,null,null,0,0]
[{"$nulls":3},"RAZEM",{"$f":"SUM(E94:E97)","v":0},{"$f":"SUM(F94:F97)","v":0}]
[]
["Zamawiający przyjął szacunkowy wykaz usług oraz części zamiennych na podstawie ilości najczęściej użytych części do naprawy ww. pojazdów.\nInne części samochodowe, które nie zostały wymienione a konstrukcyjnie wchodzą w skład pojazdu będą naprawiane lub wymieniane w ramach zawartej umowy."]
[]
["Ogółem: suma brutto z poszczególnych tabeli od 1 do 6  (kol. 5)  ",null,{"$f":"SUM(F18+F35+F52+F69+F86+F98)","v":0},"zł brutto","Wartość brutto należy wpisać do Formularza ofertowego - Część II- samochody ciężarowe"]
[]
["Cena 1 roboczogodziny brutto dla usług/napraw nie ujętych w formularzu ofertowym  wynosi:",{"$nulls":3},0,"zł brutto"]
[]
["Cena za roboczogodzinę naprawy uwzględnia wszelkie wymagania przedmiotowego zamówienia oraz obejmuje wszelkie koszty, jakie poniesie Wykonawca z tytułu należytej oraz zgodnej z obowiązującymi przepisami realizacji przedmiotu zamówienia. Zaoferowana stawka roboczogodziny jest stawką uwzględniającą wszelkie podatki, narzuty, koszty ogólne i pośrednie oraz zysk Wykonawcy i jest stała w okresie trwania umowy."]
["Zamawiający przyjął szacunkowy wykaz usług oraz części zamiennych na podstawie ilości najczęściej użtych części do naprawy ww. pojazdów.Inne części samochodowe, które nie zostały wymienione a konstrukcyjnie wchodzą w skład pojazdu będą naprawiane lub wymieniane w ramach  zawartej umowy."]
[]
["Przedstawione wyżej wartości cenowe obowiązują na czas trwania umowy."]
[]
[]
[]
[]
["..............................., dn. ...............................",null,"                                                                                          ..............................................................................................."]
["                                                                                                         "]